bitfinex/quotes_BTCUSD_20250624
["timestamp","ask_amount","ask_price","bid_price","bid_amount"]
[1750744185667,0.06043329,105470.0,105460.0,0.47794332]
[1750744186337,0.01875329,105470.0,105460.0,0.47794332]
[1750744186549,0.01875329,105470.0,105460.0,0.44943932]
[1750744186752,0.01874463,105470.0,105460.0,0.44943932]
[1750744187195,0.01874463,105470.0,105460.0,0.73198529]
[1750744187664,0.01874463,105470.0,105460.0,0.76048629]
[1750744188299,0.001,105470.0,105460.0,0.44495817]
[1750744188510,0.001,105470.0,105460.0,0.63570032]
[1750744189060,0.00105,105470.0,105460.0,0.63570032]
[1750744192121,0.00105,105470.0,105460.0,0.60271817]
[1750744192347,0.00105,105470.0,105460.0,0.63570032]
[1750744192795,0.00105,105470.0,105460.0,0.91824629]
[1750744193666,5e-05,105470.0,105460.0,0.91824629]
[1750744194090,5e-05,105470.0,105460.0,0.92024629]
[1750744196063,5e-05,105470.0,105460.0,0.91824629]
[1750744197669,5e-05,105470.0,105460.0,1.26224629]
[1750744199776,5e-05,105470.0,105460.0,1.35178144]
[1750744199983,5e-05,105470.0,105460.0,1.45178144]
[1750744200398,5e-05,105470.0,105460.0,1.48001165]
[1750744200606,5e-05,105470.0,105460.0,1.47801165]
[1750744200814,5e-05,105470.0,105460.0,1.2950295]
[1750744201029,5e-05,105470.0,105460.0,1.33548865]
[1750744201234,5e-05,105470.0,105460.0,1.3684708]
[1750744202560,5e-05,105470.0,105460.0,1.30725844]
[1750744202767,5e-05,105470.0,105460.0,1.23226414]
[1750744202983,5e-05,105470.0,105460.0,1.26524629]
[1750744203224,5e-05,105470.0,105460.0,1.26124629]
[1750744203650,5e-05,105470.0,105460.0,1.26524629]
[1750744208168,5e-05,105470.0,105460.0,1.34024059]
[1750744208589,5e-05,105470.0,105460.0,1.29724117]
[1750744208798,5e-05,105470.0,105460.0,1.39098405]
[1750744209001,5e-05,105470.0,105460.0,1.57978714]
[1750744209414,5e-05,105470.0,105460.0,1.65474071]
[1750744209620,5e-05,105470.0,105460.0,1.57978714]
[1750744209829,5e-05,105470.0,105460.0,1.6547516]
[1750744210253,5e-05,105470.0,105460.0,1.37220563]
[1750744210457,5e-05,105470.0,105460.0,1.57978714]
[1750744210663,5e-05,105470.0,105460.0,1.21425902]
[1750744210870,5e-05,105470.0,105460.0,1.23226414]
[1750744211079,5e-05,105470.0,105460.0,1.06772679]
[1750744211302,5e-05,105470.0,105460.0,0.47692679]
[1750744211513,5e-05,105470.0,105460.0,0.61135817]
[1750744211716,5e-05,105470.0,105460.0,0.64434032]
[1750744212130,5e-05,105470.0,105460.0,0.48494032]
[1750744212321,5e-05,105470.0,105460.0,0.63942032]
[1750744212525,5e-05,105470.0,105460.0,0.58942032]
[1750744212726,5e-05,105470.0,105460.0,0.64242032]
[1750744212953,5e-05,105470.0,105460.0,0.60943817]
[1750744213159,5e-05,105470.0,105460.0,0.62302032]
[1750744213654,5e-05,105470.0,105460.0,0.63802032]
[1750744214070,5e-05,105470.0,105460.0,0.64202032]
[1750744214202,5e-05,105470.0,105460.0,0.64194032]
[1750744215333,5e-05,105470.0,105460.0,0.61343932]
[1750744218331,5e-05,105470.0,105460.0,0.58193932]
[1750744218579,5e-05,105470.0,105460.0,0.59783932]
[1750744218797,5e-05,105470.0,105460.0,0.89678529]
[1750744220387,5e-05,105470.0,105460.0,0.92528529]
[1750744220627,5e-05,105470.0,105460.0,0.64273932]
[1750744220832,5e-05,105470.0,105460.0,0.92528529]
[1750744222837,5e-05,105470.0,105460.0,0.64273932]
[1750744224441,5e-05,105470.0,105460.0,0.61423932]
[1750744224650,5e-05,105470.0,105460.0,0.64273932]
[1750744224859,5e-05,105470.0,105460.0,0.61043932]
[1750744226195,5e-05,105470.0,105460.0,0.62263932]
[1750744226436,5e-05,105470.0,105460.0,0.63483932]
[1750744226661,5e-05,105470.0,105460.0,0.63783932]
[1750744227768,5e-05,105470.0,105460.0,0.44703932]
[1750744227970,5e-05,105470.0,105460.0,0.60643932]
[1750744229041,5e-05,105470.0,105460.0,0.57345717]
[1750744229286,5e-05,105470.0,105460.0,0.60643932]
[1750744230136,5e-05,105470.0,105460.0,0.57345717]
[1750744230382,5e-05,105470.0,105460.0,0.44703932]
[1750744230595,5e-05,105470.0,105460.0,0.60623932]
[1750744231434,0.01585,105470.0,105460.0,0.60623932]
[1750744232264,5e-05,105470.0,105460.0,0.60623932]
[1750744232480,5e-05,105470.0,105460.0,0.57773932]
[1750744232670,5e-05,105470.0,105460.0,0.60624232]
[1750744234686,0.03235,105470.0,105460.0,0.57326017]
[1750744234895,0.31489597,105470.0,105460.0,0.57326017]
[1750744235108,0.31489597,105470.0,105460.0,0.60624232]
[1750744235307,5e-05,105470.0,105460.0,0.60624232]
[1750744236314,5e-05,105470.0,105460.0,0.57326017]
[1750744236523,5e-05,105470.0,105460.0,0.60624232]
[1750744236957,5e-05,105470.0,105460.0,0.62284232]
[1750744237785,5e-05,105470.0,105460.0,0.58986017]
[1750744237991,5e-05,105470.0,105460.0,0.62284232]
[1750744238329,5e-05,105470.0,105460.0,0.63794232]
[1750744240443,5e-05,105470.0,105460.0,0.60496017]
[1750744240643,5e-05,105470.0,105460.0,0.63794232]
[1750744242389,5e-05,105470.0,105460.0,0.60624232]
[1750744243235,0.03155,105470.0,105460.0,0.60624232]
[1750744243465,0.03155,105470.0,105460.0,0.54475717]
[1750744243679,0.03155,105470.0,105460.0,0.60624332]
[1750744244119,5e-05,105470.0,105460.0,0.60624332]
[1750744247278,2e-06,105470.0,105460.0,0.60624332]
[1750744248288,2e-06,105470.0,105460.0,0.57773932]
[1750744248715,2e-06,105470.0,105460.0,0.60624332]
[1750744253211,2e-06,105470.0,105460.0,0.57326117]
[1750744253417,2e-06,105470.0,105460.0,0.57773932]
[1750744253834,2e-06,105470.0,105460.0,0.60624332]
[1750744254459,2e-06,105470.0,105460.0,0.57326117]
[1750744254667,2e-06,105470.0,105460.0,0.60624332]
[1750744256437,2e-06,105470.0,105460.0,0.57773932]
[1750744256654,2e-06,105470.0,105460.0,0.60624232]
[1750744257194,0.35820882,105470.0,105460.0,0.17700486]
[1750744257419,0.38930882,105470.0,105460.0,0.14850186]
[1750744257664,0.38930882,105470.0,105460.0,0.18148401]
[1750744258084,0.38930882,105470.0,105460.0,0.18048401]
[1750744258611,0.38930882,105470.0,105460.0,0.17848401]
[1750744258742,0.72930882,105470.0,105460.0,0.17848401]
[1750744259153,0.65364797,105470.0,105460.0,0.17848401]
[1750744259775,0.69576797,105470.0,105460.0,0.17848401]
[1750744260381,0.69676797,105470.0,105460.0,0.17848401]
[1750744260590,0.0325,105460.0,105450.0,0.20824]
[1750744260795,0.31504597,105460.0,105450.0,0.30177006]
[1750744261000,0.31504597,105460.0,105450.0,0.14550186]
[1750744261438,0.28254597,105460.0,105440.0,0.0291693]
[1750744261640,0.31314597,105450.0,105440.0,0.17914531]
[1750744261844,0.59569194,105450.0,105440.0,0.08364345]
[1750744262293,0.31314597,105450.0,105440.0,0.08364345]
[1750744262444,0.31314597,105450.0,105440.0,0.0006613]
[1750744262445,0.59569194,105450.0,105440.0,0.0006613]
[1750744262646,0.59569194,105450.0,105440.0,0.03364345]
[1750744263117,0.59569194,105450.0,105440.0,0.03564345]
[1750744263527,0.63363276,105450.0,105440.0,0.03564345]
[1750744264165,0.64817361,105450.0,105440.0,0.03664345]
[1750744264722,0.64817361,105450.0,105440.0,0.03564345]
[1750744265128,0.36562764,105450.0,105440.0,0.03564345]
[1750744265332,0.40774764,105450.0,105440.0,0.03564345]
[1750744265538,0.40774764,105450.0,105440.0,0.0026613]
[1750744265742,0.40774764,105450.0,105440.0,0.03564345]
[1750744266284,0.12520167,105450.0,105440.0,0.03564345]
[1750744266507,0.40774764,105450.0,105440.0,0.03564345]
[1750744267089,0.40874764,105450.0,105440.0,0.03564345]
[1750744267300,0.69129361,105450.0,105440.0,0.03364345]
[1750744268285,0.40874764,105450.0,105440.0,0.03364345]
[1750744268489,0.36662764,105450.0,105440.0,0.03364345]
[1750744268665,0.40874764,105450.0,105440.0,0.03364345]
[1750744269331,0.39931982,105450.0,105440.0,0.03364345]
[1750744269920,0.35719982,105450.0,105440.0,0.03364345]
[1750744270090,0.40903598,105450.0,105440.0,0.03364345]
[1750744270515,0.38052298,105450.0,105440.0,0.03364345]
[1750744270687,0.33538213,105450.0,105440.0,0.03364345]
[1750744270872,0.33538213,105450.0,105440.0,0.04312742]
[1750744271078,0.33538213,105450.0,105440.0,0.0526113]
[1750744271307,0.33538213,105450.0,105440.0,0.04312742]
[1750744271586,0.33538213,105450.0,105440.0,0.0526113]
[1750744271948,0.33538213,105450.0,105440.0,0.41959449]
[1750744271949,0.001,105450.0,105440.0,0.41959449]
[1750744272153,0.04312,105450.0,105440.0,0.43856162]
[1750744272602,0.001,105450.0,105440.0,0.43856162]
[1750744273334,0.001,105450.0,105440.0,0.59692162]
[1750744277857,0.001,105450.0,105440.0,0.87946759]
[1750744278512,0.001,105450.0,105440.0,0.59692162]
[1750744280629,0.04212,105460.0,105450.0,0.28399389]
[1750744280841,0.04212,105460.0,105450.0,0.37949575]
[1750744281894,0.32466597,105460.0,105450.0,0.37949575]
[1750744282103,0.04212,105460.0,105450.0,0.37949575]
[1750744282307,0.04312,105460.0,105450.0,0.37949575]
[1750744284532,0.001,105460.0,105450.0,0.71204172]
[1750744285159,0.001,105460.0,105450.0,0.73102172]
[1750744285375,0.042002,105470.0,105460.0,0.24969106]
[1750744285583,0.042002,105470.0,105460.0,0.53629507]
[1750744285824,0.042002,105470.0,105460.0,0.58629507]
[1750744286892,2e-06,105470.0,105460.0,0.58629507]
[1750744289700,2e-06,105470.0,105460.0,0.61479807]
[1750744299520,2e-06,105470.0,105460.0,0.58629507]
[1750744299718,2e-06,105470.0,105460.0,0.61479807]
[1750744300135,2e-06,105470.0,105460.0,1.23734404]
[1750744301773,2e-06,105470.0,105460.0,1.31231266]
[1750744302402,2e-06,105470.0,105460.0,1.34322794]
[1750744302874,2e-06,105470.0,105460.0,1.35676879]
[1750744303094,2e-06,105470.0,105460.0,1.73527476]
[1750744303301,2e-06,105470.0,105460.0,1.67050305]
[1750744303739,2e-06,105470.0,105460.0,1.67350305]
[1750744303948,2e-06,105470.0,105460.0,1.57576017]
[1750744304165,2e-06,105470.0,105460.0,1.57276017]
[1750744304384,2e-06,105470.0,105460.0,1.66650305]
[1750744304593,2e-06,105470.0,105460.0,1.65370816]
[1750744305229,2e-06,105470.0,105460.0,1.67268816]
[1750744305430,2e-06,105470.0,105460.0,1.68068816]
[1750744307749,2e-06,105470.0,105460.0,1.97688816]
[1750744307953,2e-06,105470.0,105460.0,2.25943413]
[1750744308711,2e-06,105470.0,105460.0,1.97688816]
[1750744309047,2e-06,105470.0,105460.0,1.90194017]
[1750744309599,2e-06,105470.0,105460.0,1.97686806]
[1750744310177,2e-06,105470.0,105460.0,1.90194017]
[1750744313783,2e-06,105470.0,105460.0,2.00180017]
[1750744317708,2e-06,105470.0,105460.0,2.28434614]
[1750744317958,2e-06,105470.0,105460.0,2.37808902]
[1750744318557,2e-06,105470.0,105460.0,2.28434614]
[1750744318770,2e-06,105470.0,105460.0,2.00132017]
[1750744320766,2e-06,105470.0,105460.0,2.28386614]
[1750744320975,2e-06,105470.0,105460.0,2.33386614]
[1750744321564,5e-05,105500.0,105490.0,0.26802906]
[1750744321778,5e-05,105500.0,105490.0,1.20821904]
[1750744322187,5e-05,105500.0,105490.0,1.23670904]
[1750744323035,5e-05,105500.0,105490.0,1.92383586]
[1750744323247,5e-05,105500.0,105490.0,1.67763586]
[1750744323900,5e-05,105500.0,105490.0,1.77549586]
[1750744324125,0.00105,105500.0,105490.0,1.77549586]
[1750744324606,0.00105,105500.0,105490.0,1.78149586]
[1750744325058,0.00105,105500.0,105490.0,1.49894989]
[1750744325502,0.00105,105500.0,105490.0,1.51792989]
[1750744325967,0.00105,105500.0,105490.0,1.51192989]
[1750744326186,0.00105,105500.0,105490.0,1.51992989]
[1750744326897,5e-05,105500.0,105490.0,1.51992989]
[1750744328322,5e-05,105500.0,105490.0,2.00181586]
[1750744329485,5e-05,105500.0,105490.0,2.09555874]
[1750744329942,0.0001,105520.0,105510.0,0.9023935]
[1750744330173,0.00014607,105520.0,105510.0,2.21620568]
[1750744331544,0.00014607,105520.0,105510.0,2.22020568]
[1750744332857,0.00014607,105520.0,105510.0,2.22220568]
[1750744333056,0.00014607,105520.0,105510.0,2.21820568]
[1750744333484,0.00014607,105520.0,105510.0,2.24260568]
[1750744334286,0.00014607,105520.0,105510.0,2.62880568]
[1750744334906,0.00014607,105520.0,105510.0,2.47108568]
[1750744335085,0.00014607,105520.0,105510.0,2.47056568]
[1750744335288,0.00014607,105520.0,105510.0,2.39070075]
[1750744335528,0.00014607,105520.0,105510.0,2.47056568]
[1750744336870,0.00014607,105520.0,105510.0,2.15654483]
[1750744337084,0.00014607,105520.0,105510.0,1.67171393]
[1750744337288,0.00014607,105520.0,105510.0,1.70157886]
[1750744337498,0.00014607,105520.0,105510.0,1.28798048]
[1750744337704,0.00014607,105520.0,105510.0,1.62798048]
[1750744338125,0.00014607,105520.0,105510.0,1.61798048]
[1750744338324,0.00014607,105520.0,105510.0,1.41850048]
[1750744338483,0.00014607,105520.0,105510.0,1.57718048]
[1750744339491,0.00014607,105520.0,105510.0,1.41950048]
[1750744339706,0.00014607,105520.0,105510.0,1.42550048]
[1750744339905,0.31459204,105520.0,105510.0,0.20890186]
[1750744340111,0.31559204,105520.0,105510.0,0.24250186]
[1750744340308,0.34780262,105520.0,105510.0,0.097]
[1750744340510,0.63034859,105520.0,105510.0,0.09466493]
[1750744340807,0.93944859,105520.0,105510.0,0.0347]
[1750744341013,0.93944859,105520.0,105510.0,0.0337]
[1750744341371,0.94828554,105520.0,105510.0,0.0277]
[1750744341774,0.94828557,105520.0,105510.0,0.0267]
[1750744342293,0.94828557,105520.0,105490.0,0.18754493]
[1750744342294,0.01454085,105500.0,105490.0,0.18754493]
[1750744342503,0.03221058,105500.0,105490.0,0.15768]
[1750744342703,0.07401058,105500.0,105490.0,0.18754493]
[1750744342907,0.51576946,105500.0,105490.0,0.18754493]
[1750744343117,0.51576946,105500.0,105490.0,0.02986493]
[1750744343318,0.51576946,105500.0,105480.0,0.05]
[1750744343518,0.51576946,105500.0,105480.0,0.34252726]
[1750744343729,0.51576946,105500.0,105480.0,0.55109676]
[1750744343933,0.51576946,105500.0,105490.0,0.20855012]
[1750744344153,0.51576946,105500.0,105480.0,0.54161566]
[1750744344371,0.51576946,105500.0,105490.0,0.02986493]
[1750744345166,0.50322861,105500.0,105490.0,0.02986493]
[1750744345603,0.48355888,105500.0,105490.0,0.02986493]
[1750744345824,0.50120793,105500.0,105490.0,0.02986493]
[1750744345976,0.50520793,105500.0,105490.0,0.02986493]
[1750744346504,0.004,105500.0,105490.0,0.3744377]
[1750744346721,0.004,105500.0,105490.0,0.17536679]
[1750744347078,0.44575888,105500.0,105490.0,0.17536679]
[1750744347989,0.44575888,105500.0,105490.0,0.18758493]
[1750744347990,0.44175888,105500.0,105490.0,0.18758493]
[1750744348191,0.47593758,105500.0,105490.0,0.02986493]
[1750744348809,0.01963785,105500.0,105490.0,0.72045822]
[1750744349008,0.003,105500.0,105490.0,1.20645473]
[1750744349216,0.003,105500.0,105490.0,0.79318785]
[1750744349821,0.001,105500.0,105490.0,0.79318785]
[1750744350052,0.00014607,105520.0,105510.0,0.22889819]
[1750744350223,0.00014607,105520.0,105510.0,0.50119514]
[1750744350837,0.00014607,105520.0,105510.0,0.51067246]
[1750744351054,0.00014607,105520.0,105510.0,0.33320679]
[1750744351270,0.00014607,105520.0,105510.0,0.34260456]
[1750744351403,0.00014607,105520.0,105510.0,0.54163773]
[1750744351617,0.00014607,105520.0,105510.0,0.55111523]
[1750744352071,0.00214607,105520.0,105510.0,0.34260456]
[1750744352281,0.00214607,105520.0,105510.0,0.33312679]
[1750744352482,0.00214607,105520.0,105510.0,0.34360456]
[1750744352751,0.00214607,105520.0,105510.0,0.28312679]
[1750744352876,0.00214607,105520.0,105510.0,0.29260456]
[1750744353099,0.00314607,105520.0,105510.0,0.12536679]
[1750744353298,0.00314607,105520.0,105510.0,0.29256456]
[1750744353508,0.00314607,105520.0,105510.0,0.18758493]
[1750744353713,0.04494607,105520.0,105510.0,0.1970627]
[1750744353920,0.04494607,105520.0,105510.0,0.20654038]
[1750744354123,0.04494607,105520.0,105510.0,0.23837578]
[1750744354329,0.04494607,105520.0,105510.0,0.39609578]
[1750744355113,0.04494607,105520.0,105510.0,0.40557328]
[1750744355515,0.04494607,105520.0,105510.0,0.24785328]
[1750744355940,0.04494607,105520.0,105510.0,0.25733069]
[1750744356139,0.04494607,105520.0,105510.0,0.41505069]
[1750744356477,0.00314607,105520.0,105510.0,0.57002969]
[1750744357586,0.00314607,105520.0,105510.0,0.58512969]
[1750744363798,0.00314607,105520.0,105510.0,0.57002969]
[1750744364562,0.00314607,105520.0,105510.0,0.59852069]
[1750744367500,0.00314607,105520.0,105510.0,0.58562969]
[1750744367706,0.00314607,105520.0,105510.0,0.60192969]
[1750744371896,0.00314607,105520.0,105510.0,0.44420969]
[1750744372154,0.00314607,105520.0,105510.0,0.60188969]
[1750744372654,0.00314607,105520.0,105510.0,0.17536679]
[1750744372859,0.28560813,105520.0,105510.0,0.39335532]
[1750744373066,0.28560813,105520.0,105510.0,0.56051282]
[1750744373281,0.28560813,105520.0,105510.0,0.5699896]
[1750744373514,0.00314607,105520.0,105510.0,0.56998906]
[1750744373721,0.00319607,105520.0,105510.0,0.60108906]
[1750744376758,0.00319607,105520.0,105510.0,0.62958006]
[1750744381502,0.00319607,105520.0,105510.0,0.91204212]
[1750744381937,0.00319607,105520.0,105510.0,1.25204212]
[1750744382148,0.00319607,105520.0,105510.0,1.56305113]
[1750744382353,0.00319607,105520.0,105510.0,1.63811681]
[1750744382968,0.00219607,105520.0,105510.0,1.35565475]
[1750744383170,0.00019607,105520.0,105510.0,1.35565475]
[1750744383377,0.00019607,105520.0,105510.0,1.35865475]
[1750744383562,0.00019607,105520.0,105510.0,1.35665475]
[1750744384001,0.00019607,105520.0,105510.0,1.35565475]
[1750744384407,0.00019607,105520.0,105510.0,1.35965475]
[1750744385190,0.00019607,105520.0,105510.0,1.28458907]
[1750744385647,0.00019607,105520.0,105510.0,1.29158907]
[1750744388360,0.00019607,105520.0,105510.0,1.30612992]
[1750744388560,0.00019607,105520.0,105510.0,1.58859198]
[1750744388970,0.00019607,105520.0,105510.0,1.66365766]
[1750744389866,0.55186206,105560.0,105550.0,0.25843156]
[1750744389867,0.41085347,105560.0,105550.0,0.25843156]
[1750744390072,0.32436034,105560.0,105550.0,0.54167835]
[1750744390265,0.32436034,105560.0,105550.0,0.53220453]
[1750744390575,0.32436034,105560.0,105550.0,0.55115226]
[1750744391033,0.32636034,105560.0,105550.0,0.55115226]
[1750744391251,0.04389828,105560.0,105550.0,0.57009963]
[1750744391451,0.28460034,105560.0,105550.0,0.54167853]
[1750744391660,0.28460034,105560.0,105550.0,0.55115244]
[1750744392081,0.28460034,105560.0,105550.0,0.33324679]
[1750744392329,0.28560034,105560.0,105550.0,0.33324679]
[1750744393520,0.28560034,105560.0,105550.0,0.18717259]
[1750744394661,0.28560034,105560.0,105550.0,0.18705259]
[1750744395964,0.28560034,105560.0,105550.0,0.02929259]
[1750744396213,0.28560034,105560.0,105550.0,0.18709259]
[1750744398424,0.28560034,105560.0,105550.0,0.02929259]
[1750744400863,0.28560034,105560.0,105540.0,0.00947508]
[1750744401086,0.00313828,105560.0,105550.0,0.02929259]
[1750744401947,0.00113828,105560.0,105550.0,0.02929259]
[1750744402353,0.28560034,105560.0,105550.0,0.02929259]
[1750744402590,0.30332243,105560.0,105550.0,0.02929259]
[1750744402804,0.28460034,105560.0,105550.0,0.02929259]
[1750744403013,0.28560034,105560.0,105550.0,0.02929259]
[1750744403215,0.28560034,105560.0,105540.0,0.32287688]
[1750744403424,0.28246206,105550.0,105540.0,0.30010957]
[1750744403628,0.28246206,105550.0,105540.0,0.35407688]
[1750744403887,0.28246206,105550.0,105540.0,0.34460216]
[1750744404100,0.28246206,105550.0,105540.0,0.35407688]
[1750744404329,0.28246206,105550.0,105540.0,0.31530957]
[1750744404540,0.04389828,105560.0,105540.0,0.51852773]
[1750744404714,0.28246206,105550.0,105540.0,0.51762773]
[1750744406242,0.28246206,105550.0,105540.0,0.51862773]
[1750744407311,0.04189828,105560.0,105550.0,0.04117409]
[1750744407518,0.32436034,105560.0,105550.0,0.05064809]
[1750744408173,0.32436034,105560.0,105550.0,0.07046677]
[1750744408386,0.32436034,105560.0,105550.0,0.06099259]
[1750744408603,0.32636034,105560.0,105550.0,0.06099259]
[1750744409246,0.32636034,105560.0,105550.0,0.07046668]
[1750744409674,0.32736034,105560.0,105550.0,0.07046668]
[1750744409881,0.32736034,105560.0,105550.0,0.07046677]
[1750744410090,0.32736034,105560.0,105550.0,0.06099259]
[1750744410558,0.32736034,105560.0,105550.0,0.07046677]
[1750744410994,0.32736034,105560.0,105550.0,0.25995042]
[1750744411249,0.32736034,105560.0,105550.0,0.27889833]
[1750744411439,0.32736034,105560.0,105550.0,0.25995042]
[1750744411681,0.32736034,105560.0,105550.0,0.26942451]
[1750744412108,0.32736034,105560.0,105550.0,0.06099259]
[1750744412328,0.32736034,105560.0,105550.0,0.07046677]
[1750744412538,0.32736034,105560.0,105550.0,0.06099259]
[1750744412752,0.32736034,105560.0,105550.0,0.02929259]
[1750744412969,0.32736034,105560.0,105540.0,0.47078624]
[1750744413181,0.04489828,105560.0,105550.0,0.02929259]
[1750744413819,0.05178306,105560.0,105550.0,0.02929259]
[1750744414242,0.05378306,105560.0,105550.0,0.02929259]
[1750744414454,0.33624512,105560.0,105540.0,0.17720186]
[1750744414671,0.28246206,105550.0,105540.0,0.21596953]
[1750744414885,0.28246206,105550.0,105540.0,0.02929259]
[1750744416903,0.28346206,105550.0,105540.0,0.02929259]
[1750744417435,0.28321327,105550.0,105540.0,0.02929259]
[1750744417856,0.28421327,105550.0,105540.0,0.02929259]
[1750744418944,0.28421327,105550.0,105530.0,0.44730822]
[1750744419289,0.28246206,105540.0,105530.0,0.43341416]
[1750744419672,0.28246206,105540.0,105530.0,0.42393846]
[1750744420480,0.28246206,105540.0,105530.0,0.41446267]
[1750744421304,0.001,105550.0,105540.0,0.02929259]
[1750744421521,0.32422206,105550.0,105540.0,0.06089259]
[1750744422455,0.34013828,105560.0,105540.0,0.2282691]
[1750744422715,0.28246206,105550.0,105540.0,0.269144]
[1750744422882,0.28346206,105550.0,105540.0,0.25966919]
[1750744423084,0.28346206,105550.0,105540.0,0.27861872]
[1750744423251,0.28246206,105550.0,105540.0,0.26914409]
[1750744423476,0.28246206,105550.0,105540.0,0.25966919]
[1750744423701,0.28246206,105550.0,105540.0,0.26914409]
[1750744423955,0.28346206,105550.0,105540.0,0.26914409]
[1750744424150,0.28346206,105550.0,105540.0,0.2786189]
[1750744424360,0.28346206,105550.0,105540.0,0.2398515]
[1750744424566,0.28346206,105550.0,105540.0,0.26914409]
[1750744424772,0.28346206,105550.0,105540.0,0.25966919]
[1750744424975,0.28346206,105550.0,105540.0,0.41730928]
[1750744425199,0.28346206,105550.0,105540.0,0.42678409]
[1750744425399,0.28346206,105550.0,105540.0,0.42678418]
[1750744425604,0.28346206,105550.0,105540.0,0.21833259]
[1750744426249,0.28346206,105550.0,105540.0,0.18904]
[1750744426562,0.28346206,105550.0,105540.0,0.06069259]
[1750744426771,0.28346206,105550.0,105540.0,0.04087508]
[1750744426913,0.28346206,105550.0,105540.0,0.06069259]
[1750744427734,0.28446206,105550.0,105540.0,0.06069259]
[1750744429585,0.28446206,105550.0,105540.0,0.0314]
[1750744429835,0.28446206,105550.0,105540.0,0.06069259]
[1750744430774,0.28446206,105550.0,105540.0,0.2596691]
[1750744431030,0.28446206,105550.0,105540.0,0.06069259]
[1750744432020,0.28446206,105550.0,105540.0,0.02929259]
[1750744432574,0.28446206,105550.0,105540.0,0.05949259]
[1750744438106,0.28446206,105550.0,105530.0,0.28384186]
[1750744438309,0.28246206,105540.0,105530.0,0.33384186]
[1750744438516,0.28246206,105540.0,105530.0,0.12620186]
[1750744438721,0.28246206,105540.0,105530.0,0.28380186]
[1750744439325,0.28246206,105540.0,105530.0,0.33380186]
[1750744439526,0.28246206,105540.0,105530.0,0.28380186]
[1750744439744,0.28246206,105540.0,105530.0,0.33380186]
[1750744439959,0.28246206,105540.0,105530.0,0.34327783]
[1750744440139,0.28246206,105540.0,105530.0,0.58104138]
[1750744440341,0.28246206,105540.0,105530.0,0.55174888]
[1750744440575,0.28246206,105540.0,105530.0,0.58104147]
[1750744440742,0.28246206,105540.0,105530.0,0.54227318]
[1750744440956,0.28246206,105540.0,105530.0,0.37257042]
[1750744441136,0.28246206,105540.0,105530.0,0.38204621]
[1750744441738,0.38189828,105560.0,105530.0,0.36654621]
[1750744441970,0.38189828,105560.0,105540.0,0.04439259]
[1750744441971,0.43130445,105560.0,105540.0,0.04439259]
[1750744442582,0.43130445,105560.0,105540.0,0.05949259]
[1750744443022,0.43330445,105560.0,105540.0,0.05949259]
[1750744443205,0.28346206,105550.0,105540.0,0.05949259]
[1750744443413,0.30123368,105550.0,105540.0,0.05949259]
[1750744443762,0.28346206,105550.0,105540.0,0.05949259]
[1750744444026,0.31013308,105550.0,105540.0,0.05949259]
[1750744444222,0.31013308,105550.0,105540.0,0.0302]
[1750744444425,0.30913308,105550.0,105540.0,0.0302]
[1750744444566,0.31013308,105550.0,105540.0,0.05949259]
[1750744444771,0.31013308,105550.0,105540.0,0.0302]
[1750744445377,0.31113308,105550.0,105540.0,0.0162]
[1750744445588,0.31113308,105550.0,105540.0,0.04549259]
[1750744446037,0.31113308,105550.0,105540.0,0.06159259]
[1750744446647,0.31113396,105550.0,105540.0,0.06159259]
[1750744448633,0.31113393,105550.0,105540.0,0.0323]
[1750744448838,0.31113393,105550.0,105540.0,0.06159259]
[1750744449606,0.31113367,105550.0,105540.0,0.06159259]
[1750744451650,0.31113367,105550.0,105540.0,0.06143559]
[1750744452985,0.31113367,105550.0,105540.0,0.032143]
[1750744453240,0.31113367,105550.0,105540.0,0.06143559]
[1750744454915,0.31113367,105550.0,105540.0,0.032143]
[1750744455118,0.31113325,105550.0,105540.0,0.06143559]
[1750744457574,0.31113109,105550.0,105540.0,0.06143559]
[1750744459188,0.02866903,105550.0,105540.0,0.06143559]
[1750744459349,0.31113109,105550.0,105540.0,0.06143559]
[1750744460158,0.02866903,105550.0,105540.0,0.06143559]
[1750744460357,0.31113109,105550.0,105540.0,0.032143]
[1750744460576,0.31113109,105550.0,105540.0,0.06143559]
[1750744460994,0.28446206,105550.0,105540.0,0.06143559]
[1750744461206,0.31113191,105550.0,105540.0,0.06143559]
[1750744463381,0.29335201,105550.0,105540.0,0.06143559]
[1750744463589,0.3111328,105550.0,105540.0,0.06143559]
[1750744464062,0.3111328,105550.0,105540.0,0.032143]
[1750744464242,0.3111328,105550.0,105540.0,0.06143559]
[1750744466302,0.55821788,105550.0,105540.0,0.06143559]
[1750744467157,0.59993788,105550.0,105540.0,0.06143559]
[1750744467369,0.59993788,105550.0,105540.0,0.032143]
[1750744467582,0.59993788,105550.0,105540.0,0.06143559]
[1750744469257,0.59993958,105550.0,105540.0,0.06143559]
[1750744469799,0.59993958,105550.0,105540.0,0.032143]
[1750744470001,0.59993958,105550.0,105540.0,0.06143559]
[1750744471491,0.07039244,105550.0,105540.0,0.06143559]
[1750744471720,0.33516601,105550.0,105540.0,0.06143559]
[1750744471939,0.07031534,105550.0,105540.0,0.42486322]
[1750744472188,0.26677357,105550.0,105540.0,0.50052407]
[1750744472631,0.002,105550.0,105540.0,0.52900807]
[1750744472844,0.26677357,105550.0,105540.0,0.52900807]
[1750744473496,0.26677357,105550.0,105540.0,0.50052407]
[1750744473705,0.26677357,105550.0,105540.0,0.52900707]
[1750744474131,0.26677357,105550.0,105540.0,0.68648707]
[1750744474353,0.28435848,105550.0,105540.0,0.68648707]
[1750744474578,0.28435848,105550.0,105540.0,0.69596179]
[1750744474843,0.28435848,105550.0,105540.0,0.70543624]
[1750744475063,0.28435848,105550.0,105540.0,0.67701262]
[1750744475280,0.28435848,105550.0,105540.0,0.60135195]
[1750744475493,0.28435848,105550.0,105540.0,0.42486376]
[1750744475711,0.28435848,105550.0,105540.0,0.59177848]
[1750744475928,0.28435848,105550.0,105540.0,0.60125257]
[1750744476188,0.28435848,105550.0,105540.0,0.59177812]
[1750744476400,0.28435848,105550.0,105540.0,0.60125266]
[1750744476613,0.28435848,105550.0,105540.0,0.58230349]
[1750744476826,0.28435848,105550.0,105540.0,0.60125248]
[1750744478165,0.002,105550.0,105540.0,0.60125248]
[1750744481996,0.002,105550.0,105540.0,0.62973548]
[1750744487160,0.002,105550.0,105540.0,0.98775481]
[1750744487640,0.002,105550.0,105540.0,0.97381266]
[1750744487831,0.002,105550.0,105540.0,1.00229166]
[1750744490241,0.002,105550.0,105540.0,0.92663081]
[1750744490461,0.002,105550.0,105540.0,0.64427233]
[1750744491597,0.002,105550.0,105540.0,0.97663081]
[1750744492261,0.002,105550.0,105540.0,1.31663081]
[1750744497049,0.00013828,105560.0,105550.0,0.31173855]
[1750744497260,0.00013828,105560.0,105550.0,0.72119889]